fUSD/lending_fUSD_20260116
["ID","MTS","AMOUNT","RATE_DAILY","PERIOD"]
[402161483,1768553763063,-750.48,0.00041095,10]
[402161484,1768553763074,-897.64,0.00041095,10]
[402161485,1768553763083,-500.0,0.00041095,10]
[402161486,1768553763094,-591.5,0.00041095,10]
[402161487,1768553763106,-1018.43,0.00041095,10]
[402161488,1768553763116,-747.98,0.00041095,10]
[402161489,1768553763126,-764.04,0.00041095,10]
[402161490,1768553763136,-500.0,0.00041095,10]
[402161491,1768553763146,-647.09843301,0.00041095,10]
[402161492,1768553763155,-6302.12,0.00041095,10]
[402161493,1768553763165,-1736.72,0.00041095,10]
[402161494,1768553763175,-505.41,0.00041095,10]
[402161495,1768553763187,-1307.78,0.00041095,10]
[402161496,1768553763197,-1307.78,0.00041095,10]
[402161497,1768553763207,-1307.78,0.00041095,10]
[402161498,1768553763218,-1307.78,0.00041095,10]
[402161499,1768553763227,-1307.78,0.00041095,10]
[402161500,1768553763237,-1307.78,0.00041095,10]
[402161501,1768553763247,-1307.78,0.00041095,10]
[402161502,1768553763258,-1307.78,0.00041095,10]
[402161503,1768553763267,-1307.78,0.00041095,10]
[402161504,1768553763277,-1307.78,0.00041095,10]
[402161505,1768553763286,-1307.78,0.00041095,10]
[402161506,1768553763296,-1307.78,0.00041095,10]
[402161507,1768553763306,-1307.78,0.00041095,10]
[402161508,1768553763315,-1307.78,0.00041095,10]
[402161509,1768553763325,-1307.78,0.00041095,10]
[402161510,1768553763335,-1307.78,0.00041095,10]
[402161511,1768553763344,-1307.78,0.00041095,10]
[402161512,1768553763354,-1002.58,0.00041095,10]
[402161513,1768553763363,-1307.78,0.00041095,10]
[402161514,1768553763373,-667.66,0.00041095,10]
[402161515,1768553763382,-1307.78,0.00041095,10]
[402161516,1768553763391,-1307.78,0.00041095,10]
[402161517,1768553763400,-1307.78,0.00041095,10]
[402161518,1768553763410,-1041.6,0.00041095,10]
[402161519,1768553763419,-528.13,0.00041095,10]
[402161520,1768553763429,-848.85,0.00041095,10]
[402161521,1768553763439,-1353.3,0.00041095,10]
[402161522,1768553763448,-500.0,0.00041095,10]
[402161523,1768553763457,-1109.73,0.00041095,10]
[402161524,1768553763468,-307.11638205,0.00041095,10]
[402161525,1768553763477,-623.92,0.00041095,10]
[402161526,1768553763487,-737.24,0.00041095,10]
[402161527,1768553763496,-1021.74,0.00041095,10]
[402161528,1768553763505,-935.75,0.00041095,10]
[402161529,1768553763514,-539.09,0.00041095,10]
[402161530,1768553763523,-907.64,0.00041095,10]
[402161531,1768553763534,-535.61,0.00041095,10]
[402161532,1768553763544,-664.49,0.00041095,10]
[402161533,1768553763553,-686.98,0.00041095,10]
[402161534,1768553763563,-1173.84,0.00041095,10]
[402161535,1768553763573,-600.0,0.00041096,120]
[402161536,1768553763587,-300.0,0.00041096,10]
[402161537,1768553763596,-260.06,0.00041096,120]
[402161538,1768553763605,-225.05,0.00041096,120]
[402161539,1768553763615,-200.796756,0.00041096,120]
[402161540,1768553763625,-200.796756,0.00041096,120]
[402161541,1768553763634,-200.796756,0.00041096,120]
[402161542,1768553763644,-200.796756,0.00041096,120]
[402161543,1768553763655,-200.796756,0.00041096,120]
[402161544,1768553763665,-200.796756,0.00041096,120]
[402161545,1768553763674,-200.796756,0.00041096,120]
[402161546,1768553763683,-200.796756,0.00041096,120]
[402161547,1768553763693,-200.796756,0.00041096,120]
[402161548,1768553763702,-200.796756,0.00041096,120]
[402161549,1768553763711,-200.796756,0.00041096,120]
[402161550,1768553763720,-200.796756,0.00041096,120]
[402161551,1768553763730,-200.796756,0.00041096,120]
[402161552,1768553763739,-200.796756,0.00041096,120]
[402161553,1768553763748,-200.796756,0.00041096,120]
[402161554,1768553763757,-200.796756,0.00041096,120]
[402161555,1768553763767,-200.796756,0.00041096,120]
[402161556,1768553763777,-200.796756,0.00041096,120]
[402161557,1768553763786,-200.796756,0.00041096,120]
[402161558,1768553763799,-200.796757,0.00041096,120]
[402161559,1768553763808,-1886.94,0.00041096,120]
[402161560,1768553763818,-428.4,0.00041096,120]
[402161561,1768553763827,-657.0,0.00041096,120]
[402161562,1768553763837,-394.2,0.00041096,120]
[402161563,1768553763846,-262.8,0.00041096,120]
[402161564,1768553763856,-259.05,0.00041096,120]
[402161565,1768553763865,-259.05,0.00041096,120]
[402161566,1768553763874,-2259.5,0.00041096,120]
[402161567,1768553763883,-1240.02996297,0.00041096,120]
[402161568,1768553763892,-372.00898889,0.00041096,120]
[402161569,1768553763902,-885.91048704,0.00041096,120]
[402161570,1768553763911,-265.77314611,0.00041096,120]
[402161571,1768553763921,-265.77314611,0.00041096,120]
[402161572,1768553763931,-340.08,0.00041096,120]
[402161573,1768553763941,-340.08,0.00041096,120]
[402161574,1768553763951,-500.0,0.00041096,2]
[402161575,1768553763960,-238.90934185,0.00041104,30]
[402161576,1768553763970,-200.06159783,0.00041104,30]
[402161577,1768553763979,-162.8115885,0.00041104,30]
[402161578,1768553763989,-214.36344643,0.00041104,30]
[402161579,1768553763999,-203.67457519,0.00041104,30]
[402161580,1768553764009,-303.49476013,0.00041104,30]
[402161581,1768553764018,-167.99625046,0.00041104,30]
[402161582,1768553764028,-150.0,0.00041142,30]
[402161583,1768553764039,-150.0,0.00041147,30]
[402161584,1768553764049,-150.0,0.0004115,30]
[402161585,1768553764059,-500.0,0.00041151,2]
[402161586,1768553764069,-238.90934185,0.00041161,30]
[402161587,1768553764078,-200.06159783,0.00041161,30]
[402161588,1768553764088,-162.8115885,0.00041161,30]
[402161589,1768553764098,-214.36344643,0.00041161,30]
[402161590,1768553764107,-203.67457519,0.00041161,30]
[402161591,1768553764117,-303.49476013,0.00041161,30]
[402161592,1768553764126,-167.99625046,0.00041161,30]
[402161593,1768553764136,-395.19,0.000412,10]
[402161594,1768553764145,-500.0,0.00041206,2]
[402161595,1768553764155,-238.90934185,0.00041218,30]
[402161596,1768553764164,-200.06159783,0.00041218,30]
[402161597,1768553764174,-162.8115885,0.00041218,30]
[402161598,1768553764184,-214.36344643,0.00041218,30]
[402161599,1768553764194,-203.67457519,0.00041218,30]
[402161600,1768553764203,-303.49476013,0.00041218,30]
[402161601,1768553764212,-167.99625046,0.00041218,30]
[402161602,1768553764221,-150.0,0.00041224,30]
[402161603,1768553764231,-2200.51842603,0.0004123,5]
[402161604,1768553764241,-150.0,0.00041247,30]
[402161605,1768553764250,-500.0,0.0004126,2]
[402161606,1768553764259,-150.0,0.00041266,30]
[402161607,1768553764269,-238.90934185,0.00041275,30]
[402161608,1768553764278,-200.06159783,0.00041275,30]
[402161609,1768553764289,-162.8115885,0.00041275,30]
[402161610,1768553764299,-214.36344643,0.00041275,30]
[402161611,1768553764309,-203.67457519,0.00041275,30]
[402161612,1768553764328,-303.49476013,0.00041275,30]
[402161613,1768553764338,-167.99625046,0.00041275,30]
[402161614,1768553764347,-2467.39098806,0.0004128,120]
[402161615,1768553764356,-150.0,0.00041296,30]
[402161616,1768553764366,-500.0,0.00041315,2]
[402161617,1768553764375,-150.0,0.00041319,30]
[402161618,1768553764384,-238.90934185,0.00041333,30]
[402161619,1768553764394,-200.06159783,0.00041333,30]
[402161620,1768553764403,-162.8115885,0.00041333,30]
[402161621,1768553764413,-214.36344643,0.00041333,30]
[402161622,1768553764422,-203.67457519,0.00041333,30]
[402161623,1768553764432,-303.49476013,0.00041333,30]
[402161624,1768553764441,-167.99625046,0.00041333,30]
[402161625,1768553764451,-150.0,0.00041352,30]
[402161626,1768553764460,-150.0,0.00041362,30]
[402161627,1768553764470,-151.0,0.00041368,30]
[402161628,1768553764479,-429.318,0.00041368,30]
[402161629,1768553764488,-500.0,0.00041368,30]
[402161630,1768553764498,-1239.0,0.00041368,30]
[402161631,1768553764508,-311.1,0.00041368,30]
[402161632,1768553764516,-2000.0,0.00041368,30]
[402161633,1768553764525,-151.0,0.00041368,120]
[402161634,1768553764535,-156.587,0.00041368,30]
[402161635,1768553764544,-445.202766,0.00041368,120]
[402161636,1768553764554,-500.0,0.00041368,120]
[402161637,1768553764563,-1239.0,0.00041368,120]
[402161638,1768553764573,-2000.0,0.00041368,120]
[402161639,1768553764589,-162.380719,0.00041368,120]
[402161640,1768553764598,-1000.0,0.00041368,30]
[402161641,1768553764607,-151.0,0.00041368,30]
[402161642,1768553764618,-1000.0,0.00041368,120]
[402161643,1768553764627,-151.0,0.00041368,120]
[402161644,1768553764636,-3000.0,0.00041368,30]
[402161645,1768553764645,-3000.0,0.00041368,120]
[402161646,1768553764657,-151.0,0.00041368,30]
[402161647,1768553764666,-151.0,0.00041368,120]
[402161648,1768553764675,-156.587,0.00041368,30]
[402161649,1768553764683,-266.39346883,0.00041368,120]
[402161650,1768553764693,-250.0,0.00041368,30]
[402161651,1768553764702,-7142.856,0.00041368,30]
[402161652,1768553764711,-600.0,0.00041368,30]
[402161653,1768553764720,-1000.0,0.00041368,30]
[402161654,1768553764729,-250.0,0.00041368,120]
[402161655,1768553764738,-156.587,0.00041368,30]
[402161657,1768553764747,-600.0,0.00041368,120]
[402161658,1768553764756,-7407.141672,0.00041368,120]
[402161659,1768553764765,-1000.0,0.00041368,120]
[402161661,1768553764774,-162.380719,0.00041368,120]
[402161662,1768553764784,-500.0,0.00041368,30]
[402161663,1768553764794,-500.0,0.00041368,30]
[402161664,1768553764803,-500.0,0.00041368,120]
[402161665,1768553764812,-500.0,0.00041368,120]
[402161666,1768553764821,-1500.0,0.00041368,30]
[402161667,1768553764830,-1500.0,0.00041368,120]
[402161668,1768553764839,-220.64576124,0.00041368,30]
[402161669,1768553764848,-500.0,0.00041368,30]
[402161670,1768553764857,-250.0,0.00041368,30]
[402161671,1768553764866,-500.0,0.00041368,120]
[402161672,1768553764876,-274.04675619,0.00041368,30]
[402161673,1768553764885,-250.0,0.00041368,120]
[402161674,1768553764895,-500.0,0.00041368,30]
[402161675,1768553764903,-500.0,0.00041368,120]
[402161676,1768553764913,-500.0,0.00041368,30]
[402161677,1768553764923,-500.0,0.00041368,30]
[402161678,1768553764932,-500.0,0.00041368,120]
[402161679,1768553764941,-500.0,0.00041368,120]
[402161680,1768553764952,-151.0,0.00041368,30]
[402161681,1768553764961,-151.0,0.00041368,120]
[402161682,1768553764972,-518.5,0.00041368,30]
[402161683,1768553764981,-537.6845,0.00041368,120]
[402161684,1768553764991,-539.24,0.00041368,30]
[402161685,1768553765000,-559.19188,0.00041368,120]
[402161686,1768553765011,-567.28,0.00041369,10]
[402161687,1768553765020,-1031.15,0.00041369,10]
[402161688,1768553765030,-808.21,0.00041369,10]
[402161689,1768553765039,-813.73,0.00041369,10]
[402161690,1768553765049,-973.06,0.00041369,10]
[402161691,1768553765059,-504.36,0.00041369,10]
[402161692,1768553765068,-674.01,0.00041369,10]
[402161693,1768553765078,-331.09661633,0.00041369,10]
[402161694,1768553765087,-1037.35,0.00041369,10]
[402161695,1768553765096,-525.62,0.00041369,10]
[402161696,1768553765106,-1211.73,0.00041369,10]
[402161697,1768553765115,-654.54,0.00041369,10]
[402161698,1768553765124,-902.4,0.00041369,10]
[402161699,1768553765298,-548.97,0.00041369,10]
[402161700,1768553765308,-915.0,0.00041369,10]
[402161701,1768553765318,-786.94,0.00041369,10]
[402161702,1768553765327,-1003.52,0.00041369,10]
[402161703,1768553765337,-837.95,0.00041369,10]
[402161704,1768553765347,-551.36,0.00041369,10]
[402161705,1768553765357,-548.17,0.00041369,10]
[402161706,1768553765367,-1196.74,0.00041369,10]
[402161707,1768553765376,-587.74,0.00041369,10]
[402161708,1768553765385,-1100.8,0.00041369,10]
[402161709,1768553765395,-1067.27,0.00041369,10]
[402161710,1768553765404,-826.56,0.00041369,10]
[402161711,1768553765414,-875.73,0.00041369,10]
[402161712,1768553765423,-866.61,0.00041369,10]
[402161713,1768553765433,-542.86,0.00041369,10]
[402161714,1768553765443,-513.96,0.00041369,10]
[402161715,1768553765453,-853.02,0.00041369,10]
[402161716,1768553765463,-568.61,0.00041369,10]
[402161717,1768553765473,-625.29,0.00041369,10]
[402161718,1768553765482,-503.47,0.00041369,10]
[402161719,1768553765491,-1479.39,0.00041369,10]
[402161720,1768553765500,-668.37,0.00041369,10]
[402161721,1768553765509,-554.51,0.00041369,10]
[402161722,1768553765519,-823.81,0.00041369,10]
[402161723,1768553765528,-522.66,0.00041369,10]
[402161724,1768553765538,-632.8,0.00041369,10]
[402161725,1768553765548,-760.77,0.00041369,10]
[402161726,1768553765558,-540.98,0.00041369,10]
[402161727,1768553765567,-513.95,0.00041369,10]
[402161728,1768553765578,-543.44,0.00041369,10]
[402161729,1768553765588,-766.12,0.00041369,10]
[402161730,1768553765598,-745.1,0.00041369,10]
[402161731,1768553765608,-602.84,0.00041369,10]
[402161732,1768553765618,-681.64,0.00041369,10]
[402161733,1768553765628,-946.6,0.00041369,10]
[402161734,1768553765638,-982.01,0.00041369,10]
[402161735,1768553765647,-1431.59,0.00041369,10]
[402161736,1768553765658,-582.81,0.00041369,10]
[402161737,1768553765668,-1103.68,0.00041369,30]
[402161738,1768553765677,-500.0,0.00041369,10]
[402161739,1768553765686,-500.0,0.00041369,10]
[402161740,1768553765696,-872.15,0.00041369,10]
[402161741,1768553765706,-703.99,0.00041369,10]
[402161742,1768553765715,-548.64,0.00041369,10]
[402161743,1768553765725,-850.54,0.00041369,10]
[402161744,1768553765734,-1034.71,0.00041369,10]
[402161745,1768553765743,-500.0,0.00041369,10]
[402161746,1768553765753,-712.34,0.00041369,10]
[402161747,1768553765762,-220.66486125,0.00041369,10]
[402161748,1768553765771,-1048.59,0.00041369,10]
[402161749,1768553765780,-797.78,0.00041369,10]
[402161750,1768553765790,-864.57,0.00041369,10]
[402161751,1768553765799,-669.34,0.00041369,10]
[402161752,1768553765808,-500.0,0.00041369,10]
[402161753,1768553765817,-1695.98,0.00041369,10]
[402161754,1768553765826,-710.63,0.00041369,10]
[402161755,1768553765835,-746.93,0.00041369,10]
[402161756,1768553765845,-576.53,0.00041369,10]
[402161757,1768553765854,-551.55,0.00041369,10]
[402161758,1768553765864,-848.31,0.00041369,10]
[402161759,1768553765874,-640.15,0.00041369,10]
[402161760,1768553765883,-829.07,0.00041369,10]
[402161761,1768553765892,-893.03,0.00041369,10]
[402161762,1768553765902,-1044.65,0.00041369,2]
[402161763,1768553765911,-580.09,0.00041369,10]
[402161764,1768553765921,-2280.83,0.00041369,10]
[402161765,1768553765930,-950.38,0.00041369,10]
[402161766,1768553765940,-925.85,0.00041369,10]
[402161767,1768553765949,-926.38,0.00041369,10]
[402161768,1768553765959,-1091.37,0.00041369,10]
[402161769,1768553765968,-934.74,0.00041369,10]
[402161770,1768553765978,-1096.7,0.00041369,10]
[402161771,1768553765988,-615.77,0.00041369,10]
[402161772,1768553765997,-694.36,0.00041369,10]
[402161773,1768553766007,-816.08,0.00041369,10]
[402161774,1768553766017,-703.54,0.00041369,10]
[402161775,1768553766027,-2000.78,0.00041369,10]
[402161776,1768553766036,-1150.42,0.00041369,10]
[402161777,1768553766046,-658.36,0.00041369,10]
[402161778,1768553766055,-788.58,0.00041369,10]
[402161779,1768553766065,-578.18,0.00041369,10]
[402161780,1768553766074,-378.34200355,0.00041369,10]
[402161781,1768553766084,-1428.02,0.00041369,10]
[402161782,1768553766093,-705.82,0.00041369,10]
[402161783,1768553766103,-931.05,0.00041369,10]
[402161784,1768553766113,-577.64,0.00041369,10]
[402161785,1768553766122,-528.44,0.00041369,10]
[402161786,1768553766132,-2108.45,0.00041369,10]
[402161787,1768553766142,-1149.82,0.00041369,10]
[402161788,1768553766152,-683.35,0.00041369,10]
[402161789,1768553766162,-959.04,0.00041369,10]
[402161790,1768553766171,-700.17,0.00041369,10]
[402161791,1768553766181,-625.74,0.00041369,10]
[402161792,1768553766190,-754.4,0.00041369,10]
[402161793,1768553766200,-500.0,0.00041369,10]
[402161794,1768553766209,-737.5,0.00041369,10]
[402161795,1768553766219,-625.2,0.00041369,10]
[402161796,1768553766229,-641.84,0.00041369,10]
[402161797,1768553766238,-610.78,0.00041369,10]
[402161798,1768553766248,-544.89,0.00041369,10]
[402161799,1768553766257,-523.76,0.00041369,10]
[402161800,1768553766267,-637.87,0.00041369,10]
[402161801,1768553766277,-551.65,0.00041369,10]
[402161802,1768553766286,-1594.08,0.00041369,10]
[402161803,1768553766295,-796.44,0.00041369,10]
[402161804,1768553766304,-1146.06,0.00041369,10]
[402161805,1768553766314,-207.16167063,0.00041369,10]
[402161806,1768553766324,-567.16,0.00041369,10]
[402161807,1768553766333,-522.75,0.00041369,10]
[402161808,1768553766342,-517.33,0.00041369,10]
[402161809,1768553766351,-500.0,0.00041369,10]
[402161810,1768553766360,-751.2,0.00041369,10]
[402161811,1768553766370,-662.29,0.00041369,10]
[402161812,1768553766380,-669.08,0.00041369,10]
[402161813,1768553766389,-677.54,0.00041369,10]
[402161814,1768553766398,-1168.86,0.00041369,10]
[402161815,1768553766408,-1117.06,0.00041369,10]
[402161816,1768553766417,-1648.88,0.00041369,10]
[402161817,1768553766426,-636.52,0.00041369,10]
[402161818,1768553766436,-636.43,0.00041369,10]
[402161819,1768553766450,-575.94,0.00041369,10]
[402161820,1768553766460,-716.91,0.00041369,10]
[402161821,1768553766470,-876.77,0.00041369,10]
[402161822,1768553766479,-500.0,0.00041369,10]
[402161823,1768553766489,-990.78,0.00041369,10]
[402161824,1768553766498,-909.88,0.00041369,10]
[402161825,1768553766508,-541.15,0.00041369,10]
[402161826,1768553766517,-1150.93,0.00041369,10]
[402161827,1768553766527,-527.48,0.00041369,10]
[402161828,1768553766536,-500.0,0.00041369,10]
[402161829,1768553766546,-744.14,0.00041369,10]
[402161830,1768553766555,-903.48,0.00041369,10]
[402161831,1768553766565,-507.96,0.00041369,10]
[402161832,1768553766575,-662.66,0.00041369,10]
[402161833,1768553766588,-690.13,0.00041369,10]
[402161834,1768553766598,-519.9,0.00041369,10]
[402161835,1768553766608,-1521.24,0.00041369,10]
[402161836,1768553766618,-823.6,0.00041369,10]
[402161837,1768553766629,-500.0,0.00041369,10]
[402161838,1768553766639,-312.20107512,0.00041369,10]
[402161839,1768553766650,-1331.43,0.00041369,10]
[402161840,1768553766660,-732.95,0.00041369,10]
[402161841,1768553766669,-1326.59,0.00041369,10]
[402161842,1768553766679,-1280.38,0.00041369,10]
[402161843,1768553766689,-791.99,0.00041369,10]
[402161844,1768553766699,-500.0,0.00041369,10]
[402161845,1768553766709,-512.72,0.00041369,10]
[402161846,1768553766718,-979.74,0.00041369,10]
[402161847,1768553766728,-410.7316953,0.00041369,10]
[402161848,1768553766738,-644.37,0.00041369,10]
[402161849,1768553766747,-577.2,0.00041369,10]
[402161850,1768553766758,-970.71,0.00041369,10]
[402161851,1768553766768,-570.0,0.00041369,10]
[402161852,1768553766778,-500.0,0.00041369,10]
[402161853,1768553766789,-427.4085743,0.00041369,10]
[402161854,1768553766798,-751.52,0.00041369,10]
[402161855,1768553766808,-1015.29,0.00041369,10]
[402161856,1768553766817,-685.85,0.00041369,10]
[402161857,1768553766826,-518.25,0.00041369,10]
[402161858,1768553766835,-612.29,0.00041369,10]
[402161859,1768553766845,-290.07388614,0.00041369,10]
[402161860,1768553766855,-806.51,0.00041369,10]
[402161861,1768553766865,-695.39,0.00041369,10]
[402161862,1768553766876,-607.83,0.00041369,10]
[402161863,1768553766885,-549.65,0.00041369,10]
[402161864,1768553766895,-1220.06,0.00041369,10]
[402161865,1768553766905,-1662.06,0.00041369,10]
[402161866,1768553766915,-1639.22,0.00041369,10]
[402161867,1768553766925,-908.6,0.00041369,10]
[402161868,1768553766936,-1617.91,0.00041369,10]
[402161869,1768553766946,-1143.12,0.00041369,10]
[402161870,1768553766956,-415.00046943,0.00041369,10]
[402161871,1768553766966,-816.75,0.00041369,10]
[402161872,1768553766977,-500.0,0.00041369,10]
[402161873,1768553766987,-716.45,0.00041369,10]
[402161874,1768553766997,-603.86190457,0.00041369,10]
[402161875,1768553767006,-885.26,0.00041369,10]
[402161876,1768553767016,-678.11,0.00041369,10]
[402161877,1768553767026,-1027.78,0.00041369,10]
[402161878,1768553767036,-1096.77,0.00041369,10]
[402161879,1768553767046,-702.08,0.00041369,10]
[402161880,1768553767056,-681.79,0.00041369,10]
[402161881,1768553767067,-1477.47,0.00041369,10]
[402161882,1768553767077,-989.99,0.00041369,10]
[402161883,1768553767087,-676.3,0.00041369,10]
[402161884,1768553767096,-564.32248992,0.00041369,10]
[402161885,1768553767106,-912.84,0.00041369,10]
[402161886,1768553767116,-807.54,0.00041369,10]
[402161887,1768553767125,-591.47,0.00041369,10]
[402161888,1768553767135,-1293.68,0.00041369,10]
[402161889,1768553767145,-546.1835938,0.00041369,10]
[402161890,1768553767154,-618.86,0.00041369,10]
[402161891,1768553767164,-834.67,0.00041369,10]
[402161892,1768553767173,-4949.68,0.00041369,10]
[402161893,1768553767183,-1730.65,0.00041369,10]
[402161894,1768553767193,-500.46,0.00041369,10]
[402161895,1768553767203,-930.98,0.00041369,10]
[402161896,1768553767212,-875.62,0.00041369,10]
[402161897,1768553767222,-1041.0,0.00041369,10]
[402161898,1768553767231,-1262.31,0.00041369,10]
[402161899,1768553767240,-524.92,0.00041369,10]
[402161900,1768553767250,-591.83,0.00041369,10]
[402161901,1768553767260,-614.68,0.00041369,10]
[402161902,1768553767269,-1848.72,0.00041369,10]
[402161903,1768553767279,-790.99,0.00041369,10]
[402161904,1768553767289,-353.65,0.00041369,2]
[402161905,1768553767298,-1044.21,0.00041369,10]
[402161906,1768553767307,-1947.44,0.00041369,10]
[402161907,1768553767316,-309.83833953,0.00041369,10]
[402161908,1768553767325,-629.32,0.00041369,10]
[402161909,1768553767334,-1553.42,0.00041369,10]
[402161910,1768553767343,-1024.82,0.00041369,10]
[402161911,1768553767352,-795.66,0.00041369,10]
[402161912,1768553767361,-1036.49,0.00041369,10]
[402161913,1768553767372,-1013.98,0.00041369,10]
[402161914,1768553767387,-875.71,0.00041369,10]
[402161915,1768553767396,-548.64,0.00041369,10]
[402161916,1768553767406,-1422.5,0.00041369,10]
[402161917,1768553767415,-562.25,0.00041369,10]
[402161918,1768553767424,-543.96,0.00041369,10]
[402161919,1768553767434,-1126.68,0.00041369,10]
[402161920,1768553767443,-2121.76,0.00041369,10]
[402161921,1768553767454,-532.76,0.00041369,10]
[402161922,1768553767463,-1905.23,0.00041369,10]
[402161923,1768553767474,-502.52,0.00041369,10]
[402161924,1768553767485,-540.07,0.00041369,10]
[402161925,1768553767494,-1016.35,0.00041369,10]
[402161926,1768553767504,-5056.94,0.00041369,10]
[402161927,1768553767513,-592.16,0.00041369,10]
[402161928,1768553767523,-889.56,0.00041369,10]
[402161929,1768553767532,-500.0,0.00041369,10]
[402161930,1768553768010,-1150.45,0.00041369,10]
[402161931,1768553768030,-648.45,0.00041369,10]
[402161932,1768553768039,-1345.33,0.00041369,10]
[402161933,1768553768049,-1052.14,0.00041369,10]
[402161934,1768553768059,-990.43,0.00041369,10]
[402161935,1768553768069,-877.08,0.00041369,10]
[402161936,1768553768078,-1245.81,0.00041369,10]
[402161937,1768553768088,-665.86,0.00041369,10]
[402161938,1768553768098,-1029.8,0.00041369,10]
[402161939,1768553768108,-1298.7,0.00041369,10]
[402161940,1768553768117,-581.72,0.00041369,10]
[402161941,1768553768127,-850.69,0.00041369,10]
[402161942,1768553768136,-995.5,0.00041369,10]
[402161943,1768553768146,-1075.5,0.00041369,10]
[402161944,1768553768155,-519.23,0.00041369,10]
[402161945,1768553768165,-529.03,0.00041369,10]
[402161946,1768553768175,-716.08,0.00041369,10]
[402161947,1768553768184,-500.0,0.00041369,10]
[402161948,1768553768194,-1363.31,0.00041369,10]
[402161949,1768553768203,-598.71,0.00041369,10]
[402161950,1768553768212,-1221.02,0.00041369,10]
[402161951,1768553768221,-823.04,0.00041369,10]
[402161952,1768553768231,-1064.34,0.00041369,10]
[402161953,1768553768240,-2853.19,0.00041369,10]
[402161954,1768553768250,-913.43,0.00041369,10]
[402161955,1768553768260,-591.9,0.00041369,10]
[402161956,1768553768270,-500.0,0.00041369,10]
[402161957,1768553768280,-549.28,0.00041369,10]
[402161958,1768553768290,-2393.97,0.00041369,10]
[402161959,1768553768299,-589.47,0.00041369,10]
[402161960,1768553768309,-2257.21,0.00041369,10]
[402161961,1768553768318,-805.83,0.00041369,10]
[402161962,1768553768328,-546.1,0.00041369,10]
[402161963,1768553768337,-1412.18,0.00041369,10]
[402161964,1768553768346,-500.0,0.00041369,10]
[402161965,1768553768355,-712.99,0.00041369,10]
[402161966,1768553768364,-661.07,0.00041369,10]
[402161967,1768553768373,-732.11,0.00041369,10]
[402161968,1768553768382,-652.47,0.00041369,10]
[402161969,1768553768391,-713.12,0.00041369,10]
[402161970,1768553768400,-1182.17,0.00041369,10]
[402161971,1768553768410,-693.86,0.00041369,10]
[402161972,1768553768419,-714.22,0.00041369,10]
[402161973,1768553768429,-652.5,0.00041369,10]
[402161974,1768553768438,-1245.62,0.00041369,10]
[402161975,1768553768448,-1497.09,0.00041369,10]
[402161976,1768553768458,-1210.4,0.00041369,10]
[402161977,1768553768468,-1212.59,0.00041369,10]
[402161978,1768553768479,-941.66,0.00041369,10]
[402161979,1768553768488,-1223.9,0.00041369,10]
[402161980,1768553768497,-1292.5,0.00041369,10]
[402161981,1768553768507,-1141.45,0.00041369,10]
[402161982,1768553768517,-885.86,0.00041369,10]
[402161983,1768553768526,-520.6,0.00041369,10]
[402161984,1768553768536,-3901.38,0.00041369,10]